bitfinex/quotes_BTCUSD_20240611
["timestamp","ask_amount","ask_price","bid_price","bid_amount"]
[1718148960259,0.69473408,67372.0,67371.0,5.4e-05]
[1718148960487,0.70473408,67372.0,67371.0,5.4e-05]
[1718148961105,0.69473408,67372.0,67371.0,5.4e-05]
[1718148961319,0.69473376,67372.0,67371.0,5.4e-05]
[1718148962402,0.69473523,67372.0,67371.0,5.4e-05]
[1718148964187,0.69473501,67372.0,67371.0,5.4e-05]
[1718148964627,0.6947327,67372.0,67371.0,5.4e-05]
[1718148968798,0.69473157,67372.0,67371.0,5.4e-05]
[1718148969832,0.79769803,67372.0,67371.0,5.4e-05]
[1718148970455,0.69473157,67372.0,67371.0,5.4e-05]
[1718148976000,0.69473369,67372.0,67371.0,5.4e-05]
[1718148980690,0.69473314,67372.0,67371.0,5.4e-05]
[1718148986157,0.69473121,67372.0,67371.0,5.4e-05]
[1718148989297,0.6947281,67372.0,67371.0,5.4e-05]
[1718148991261,0.67454981,67372.0,67371.0,5.4e-05]
[1718148991494,1.03199435,67372.0,67371.0,5.4e-05]
[1718148991709,1.43885335,67372.0,67371.0,5.4e-05]
[1718148992139,1.63885335,67372.0,67371.0,5.4e-05]
[1718148992352,1.6566694,67372.0,67371.0,5.4e-05]
[1718148993001,1.63885335,67372.0,67371.0,5.4e-05]
[1718148994768,1.63886226,67372.0,67371.0,5.4e-05]
[1718148995770,1.65668026,67372.0,67371.0,5.4e-05]
[1718148995971,1.63886226,67372.0,67371.0,5.4e-05]
[1718148997512,1.62886226,67372.0,67371.0,5.4e-05]
[1718148997716,1.29456226,67372.0,67371.0,5.4e-05]
[1718148997924,1.19159615,67372.0,67371.0,5.4e-05]
[1718148998572,0.82303715,67372.0,67371.0,0.01833572]
[1718148998773,0.82303715,67372.0,67371.0,5.4e-05]
[1718148999013,0.69473715,67372.0,67371.0,0.245754]
[1718148999222,0.69473715,67372.0,67371.0,0.26403572]
[1718149001937,0.69473715,67372.0,67371.0,0.01833572]
[1718149003436,0.63316488,67372.0,67371.0,0.01833572]
[1718149003684,0.6947366,67372.0,67371.0,0.01833572]
[1718149005985,0.6230366,67372.0,67371.0,0.01833572]
[1718149006218,0.6947366,67372.0,67371.0,0.01833572]
[1718149006867,0.63316488,67372.0,67371.0,0.01833572]
[1718149007084,0.56146488,67372.0,67371.0,0.01833572]
[1718149007498,0.63316488,67372.0,67371.0,0.01833572]
[1718149007716,0.63315272,67372.0,67371.0,0.01833572]
[1718149008142,0.56145272,67372.0,67371.0,0.09393572]
[1718149008365,0.63315272,67372.0,67371.0,0.09393572]
[1718149009625,0.56080272,67372.0,67371.0,0.09393572]
[1718149009842,0.63315272,67372.0,67371.0,0.09393572]
[1718149010085,0.27005379,67372.0,67371.0,0.24249429]
[1718149010292,0.0469125,67372.0,67371.0,0.43053572]
[1718149010496,0.0469125,67372.0,67371.0,0.44053572]
[1718149010733,0.0469125,67372.0,67371.0,0.68662082]
[1718149010954,0.02886,67372.0,67371.0,0.82071229]
[1718149011162,0.02886,67372.0,67371.0,0.85057844]
[1718149011383,0.02886,67372.0,67371.0,1.10367402]
[1718149011620,0.01486,67372.0,67371.0,1.10367402]
[1718149011858,0.01486,67372.0,67371.0,0.90367402]
[1718149012052,0.01886,67372.0,67371.0,0.83197402]
[1718149012252,0.01886,67372.0,67371.0,0.90367402]
[1718149012500,0.01486,67372.0,67371.0,0.90367402]
[1718149012673,0.00086,67372.0,67371.0,0.89568423]
[1718149012877,0.00186,67372.0,67371.0,0.89568423]
[1718149013207,0.00686,67372.0,67371.0,0.89568423]
[1718149013429,0.00686,67372.0,67371.0,0.89647396]
[1718149013643,0.00186,67372.0,67371.0,0.89647396]
[1718149013781,0.00286,67372.0,67371.0,0.89747396]
[1718149014189,0.00186,67372.0,67371.0,1.0084497]
[1718149014407,0.00186,67372.0,67371.0,1.0104497]
[1718149014605,0.00286,67372.0,67371.0,1.0104497]
[1718149015649,0.00286,67372.0,67371.0,1.01029275]
[1718149015862,0.00286,67372.0,67371.0,0.89934599]
[1718149016264,0.00286,67372.0,67371.0,0.93189417]
[1718149016478,0.00286,67372.0,67371.0,0.90901276]
[1718149017039,0.00286,67372.0,67371.0,0.93189416]
[1718149017248,0.00286,67372.0,67371.0,0.99773731]
[1718149019371,0.00286,67372.0,67371.0,0.90901276]
[1718149020430,0.00286,67372.0,67371.0,0.99773731]
[1718149020630,0.00286,67372.0,67371.0,0.90901276]
[1718149021259,0.00286,67372.0,67371.0,0.97554698]
[1718149021684,0.00286,67372.0,67371.0,0.90901276]
[1718149021893,0.00286,67372.0,67371.0,0.97554013]
[1718149022112,0.00286,67372.0,67371.0,0.58462618]
[1718149022309,0.00286,67372.0,67371.0,0.97554698]
[1718149022958,0.00286,67372.0,67371.0,0.73657379]
[1718149023375,0.00286,67372.0,67371.0,0.58462618]
[1718149023648,0.00286,67372.0,67371.0,0.73653409]
[1718149024215,0.00286,67372.0,67371.0,0.67001419]
[1718149028026,0.00286,67372.0,67371.0,0.67009861]
[1718149028863,0.00286,67372.0,67371.0,0.84152961]
[1718149031017,0.00286,67372.0,67371.0,1.14559752]
[1718149031457,0.00286,67372.0,67371.0,0.84152961]
[1718149034019,0.00286,67372.0,67371.0,1.16648053]
[1718149034473,0.00286,67372.0,67371.0,1.14428115]
[1718149036423,0.00286,67372.0,67371.0,1.14463648]
[1718149037787,0.00286,67372.0,67371.0,1.34463648]
[1718149038857,0.00286,67372.0,67371.0,1.14463648]
[1718149039956,0.00286,67372.0,67371.0,0.90838618]
[1718149041193,0.00286,67372.0,67371.0,1.14631214]
[1718149041404,0.00286,67372.0,67371.0,1.0798109]
[1718149041609,0.00286,67372.0,67371.0,1.14633649]
[1718149042218,0.00286,67372.0,67371.0,1.0798109]
[1718149044303,0.00286,67372.0,67371.0,1.16851152]
[1718149045013,0.00286,67372.0,67371.0,1.36851152]
[1718149045215,0.00286,67372.0,67371.0,1.16851152]
[1718149045419,0.00286,67372.0,67371.0,1.0798109]
[1718149046162,0.00286,67372.0,67371.0,1.08004201]
[1718149046823,0.00286,67372.0,67371.0,0.93895155]
[1718149047448,0.00286,67372.0,67371.0,1.13895155]
[1718149047873,0.00286,67372.0,67371.0,0.93895155]
[1718149048259,0.00286,67372.0,67371.0,1.04988122]
[1718149048654,0.00286,67372.0,67371.0,1.04999473]
[1718149049068,0.00286,67372.0,67371.0,1.19431466]
[1718149050559,0.00286,67372.0,67371.0,1.08334712]
[1718149054729,0.00286,67372.0,67371.0,0.93902719]
[1718149055410,0.00286,67372.0,67371.0,1.07218824]
[1718149056062,0.00286,67372.0,67371.0,1.07232008]
[1718149056294,0.00286,67372.0,67371.0,0.93915903]
[1718149058028,0.00286,67372.0,67371.0,0.99008744]
[1718149058667,0.00286,67372.0,67371.0,1.19008744]
[1718149059095,0.00286,67372.0,67371.0,0.99008744]
[1718149059319,0.00286,67372.0,67371.0,1.08347896]
[1718149059767,0.00286,67372.0,67371.0,1.07507966]
[1718149060233,0.00186,67372.0,67371.0,1.07507966]
[1718149061501,0.00186,67372.0,67371.0,1.27507966]
[1718149061705,0.00186,67372.0,67371.0,1.07507966]
[1718149062757,0.00186,67372.0,67371.0,1.43127966]
[1718149062965,0.00186,67372.0,67371.0,1.48221107]
[1718149063182,0.00186,67372.0,67371.0,1.39614894]
[1718149063427,0.00186,67372.0,67371.0,1.48200801]
[1718149065421,0.00186,67372.0,67371.0,1.49262282]
[1718149068425,0.00186,67372.0,67371.0,1.49355372]
[1718149071284,0.00186,67372.0,67371.0,1.49036584]
[1718149071718,0.00186,67372.0,67371.0,1.40348268]
[1718149071930,0.00186,67372.0,67371.0,1.68726863]
[1718149075443,0.00272,67372.0,67371.0,1.68726863]
[1718149075650,0.00272,67372.0,67371.0,1.68742546]
[1718149076382,0.00272,67372.0,67371.0,1.49051501]
[1718149080463,0.00272,67372.0,67371.0,1.51350146]
[1718149080830,0.00272,67372.0,67371.0,1.5312134]
[1718149083240,0.00272,67372.0,67371.0,1.20001933]
[1718149083450,0.00272,67372.0,67371.0,1.53123907]
[1718149083659,0.00272,67372.0,67371.0,1.53123931]
[1718149084070,0.00272,67372.0,67371.0,1.45953931]
[1718149084287,0.00272,67372.0,67371.0,1.53123931]
[1718149093102,0.00272,67372.0,67371.0,1.28702841]
[1718149093315,0.00272,67372.0,67371.0,1.82082928]
[1718149093524,0.00272,67372.0,67371.0,2.26619239]
[1718149093726,0.00272,67372.0,67371.0,2.26634962]
[1718149094179,0.00272,67372.0,67371.0,2.38451673]
[1718149095435,0.00272,67372.0,67371.0,2.38452978]
[1718149097547,0.00272,67372.0,67371.0,2.18765362]
[1718149097752,0.00272,67372.0,67371.0,2.06948651]
[1718149097962,0.00272,67372.0,67371.0,2.26637467]
[1718149098178,0.00272,67372.0,67371.0,2.38454178]
[1718149098394,0.00272,67372.0,67371.0,2.18765362]
[1718149098595,0.00272,67372.0,67371.0,2.06948651]
[1718149098798,0.00272,67372.0,67371.0,2.18711966]
[1718149099000,0.00272,67372.0,67371.0,2.06895255]
[1718149103145,0.00272,67372.0,67371.0,1.63125255]
[1718149103366,0.00272,67372.0,67371.0,1.90295255]
[1718149103585,0.00272,67372.0,67371.0,1.82045255]
[1718149108371,0.15792,67372.0,67371.0,1.24188955]
[1718149108615,0.24042,67372.0,67371.0,1.01848962]
[1718149108893,0.24042,67372.0,67371.0,1.21551839]
[1718149109108,0.24042,67372.0,67371.0,1.01848962]
[1718149109327,0.24042,67372.0,67371.0,0.96755821]
[1718149109753,0.24042,67372.0,67371.0,0.70469832]
[1718149109962,0.24042,67372.0,67371.0,0.94681097]
[1718149111704,0.24042,67372.0,67371.0,0.94706781]
[1718149113901,0.24042,67372.0,67371.0,0.70479353]
[1718149114145,0.24042,67372.0,67371.0,0.94628435]
[1718149115571,0.24042,67372.0,67371.0,0.94547618]
[1718149117595,0.24042,67372.0,67371.0,0.94547099]
[1718149118227,0.24042,67372.0,67371.0,0.96473045]
[1718149119913,0.24042,67372.0,67371.0,0.72407651]
[1718149120152,0.24042,67372.0,67371.0,0.96489514]
[1718149126022,0.00272,67372.0,67371.0,0.96489514]
[1718149126433,0.00272,67372.0,67371.0,1.16489514]
[1718149128597,0.00272,67372.0,67371.0,1.21582268]
[1718149130664,0.00272,67372.0,67371.0,1.01582268]
[1718149131504,0.00272,67372.0,67371.0,1.21582268]
[1718149134838,0.00272,67372.0,67371.0,1.01582268]
[1718149139571,0.00272,67372.0,67371.0,1.21582268]
[1718149139992,0.00272,67372.0,67371.0,1.01582268]
[1718149140865,0.00272,67372.0,67371.0,1.21582268]
[1718149141325,0.00272,67372.0,67371.0,1.01582268]
[1718149141718,0.00272,67372.0,67371.0,1.01342521]
[1718149143732,0.08062,67372.0,67371.0,1.08512521]
[1718149143965,0.00272,67372.0,67371.0,1.08512521]
[1718149146814,0.00272,67372.0,67371.0,1.08525943]
[1718149147657,0.00272,67372.0,67371.0,1.00838682]
[1718149147878,0.00272,67372.0,67371.0,1.08008682]
[1718149149356,0.00272,67372.0,67371.0,1.08336885]
[1718149150449,0.00272,67372.0,67371.0,1.08378609]
[1718149159955,0.00272,67372.0,67371.0,1.06212113]
[1718149161492,0.00272,67372.0,67371.0,0.82894613]
[1718149161662,0.00272,67372.0,67371.0,1.06210644]
[1718149162478,0.00272,67372.0,67371.0,1.06237274]
[1718149166174,0.00272,67372.0,67371.0,1.0389327]
[1718149168581,0.00272,67372.0,67371.0,0.9672327]
[1718149169037,0.00272,67372.0,67371.0,1.0389327]
[1718149170957,0.00272,67372.0,67371.0,0.9672327]
[1718149171168,0.00272,67372.0,67371.0,1.0389327]
[1718149177678,0.00272,67372.0,67371.0,1.23607031]
[1718149178165,0.00272,67372.0,67371.0,1.0389327]
[1718149178547,0.00272,67372.0,67371.0,1.23607031]
[1718149178757,0.00272,67372.0,67371.0,1.0389327]
[1718149179166,0.00272,67372.0,67371.0,1.23607031]
[1718149179377,0.00272,67372.0,67371.0,1.23675292]
[1718149179534,0.00272,67372.0,67371.0,1.03961531]
[1718149179742,0.00272,67372.0,67371.0,1.23915671]
[1718149180135,0.00272,67372.0,67371.0,1.16745671]
[1718149180342,0.00272,67372.0,67371.0,1.23915671]
[1718149180554,0.00172,67372.0,67371.0,1.0420191]
[1718149181168,0.00172,67372.0,67371.0,1.23915671]
[1718149181593,0.00172,67372.0,67371.0,1.16745671]
[1718149181812,0.00172,67372.0,67371.0,1.23915671]
[1718149182217,0.00172,67372.0,67371.0,1.23937018]
[1718149185729,0.15412,67372.0,67371.0,1.23937018]
[1718149188314,0.15412,67372.0,67371.0,1.167668]
[1718149188523,0.15412,67372.0,67371.0,1.15787045]
[1718149188732,0.15412,67372.0,67371.0,1.22957045]
[1718149189589,0.15412,67372.0,67371.0,1.03243284]
[1718149190004,0.15412,67372.0,67371.0,0.9815053]
[1718149190859,0.15412,67372.0,67371.0,0.8253053]
[1718149191770,0.15412,67372.0,67371.0,0.59198652]
[1718149191995,0.15412,67372.0,67371.0,0.87249408]
[1718149192188,0.15412,67372.0,67371.0,0.82152979]
[1718149193163,0.15412,67372.0,67371.0,0.82205935]
[1718149193533,0.15412,67372.0,67371.0,0.83205935]
[1718149193873,0.15412,67372.0,67371.0,0.76035935]
[1718149194085,0.15412,67372.0,67371.0,0.60603942]
[1718149194294,0.23122,67372.0,67371.0,0.67773942]
[1718149194502,0.23122,67372.0,67371.0,0.68773942]
[1718149197465,0.23122,67372.0,67371.0,0.66719003]
[1718149198492,0.23122,67372.0,67371.0,0.71815398]
[1718149201509,0.23122,67372.0,67371.0,0.72815398]
[1718149202109,0.23122,67372.0,67371.0,0.87188199]
[1718149202322,0.00172,67372.0,67371.0,0.87188199]
[1718149206405,0.00172,67372.0,67371.0,0.72815398]
[1718149208082,0.00172,67372.0,67371.0,0.81025398]
[1718149210938,0.00172,67372.0,67371.0,1.00743986]
[1718149211705,0.00172,67372.0,67371.0,0.93573986]
[1718149211911,0.00172,67372.0,67371.0,1.00513635]
[1718149212116,0.00172,67372.0,67371.0,0.80795047]
[1718149212318,0.00172,67372.0,67371.0,1.00513635]
[1718149212517,0.00172,67372.0,67371.0,1.14945624]
[1718149214133,0.00172,67372.0,67371.0,1.00055583]
[1718149214351,0.00172,67372.0,67371.0,0.80345321]
[1718149214961,0.00172,67372.0,67371.0,1.00055583]
[1718149215387,0.00172,67372.0,67371.0,1.00036753]
[1718149216745,0.00172,67372.0,67371.0,0.80333463]
[1718149217186,0.00172,67372.0,67371.0,0.94765456]
[1718149217585,0.00172,67372.0,67371.0,0.84765456]
[1718149217798,0.00172,67372.0,67371.0,0.94765456]
[1718149218253,0.00172,67372.0,67371.0,0.80333463]
[1718149225089,0.00172,67372.0,67371.0,0.73163463]
[1718149225298,0.00172,67372.0,67371.0,0.80333463]
[1718149225981,0.00172,67372.0,67371.0,1.35003456]
[1718149226183,0.00172,67372.0,67371.0,1.77067883]
[1718149226389,0.00172,67372.0,67371.0,1.34847438]
[1718149226598,0.00172,67372.0,67371.0,1.64497953]
[1718149226780,0.00172,67372.0,67371.0,1.71496626]
[1718149228235,0.00172,67372.0,67371.0,1.71511255]
[1718149228609,0.00172,67372.0,67371.0,1.64341255]
[1718149228832,0.00172,67372.0,67371.0,1.71511255]
[1718149230237,0.00172,67372.0,67371.0,1.91511255]
[1718149230450,0.00172,67372.0,67371.0,1.71511255]
[1718149231703,0.00172,67372.0,67371.0,1.52382505]
[1718149231910,0.00172,67372.0,67371.0,1.72090375]
[1718149232120,0.00172,67372.0,67371.0,1.52382505]
[1718149233489,0.00172,67372.0,67371.0,1.51712878]
[1718149233714,0.00172,67372.0,67371.0,1.35332878]
[1718149235147,0.00172,67372.0,67371.0,1.35351023]
[1718149236248,0.00172,67372.0,67371.0,1.28181023]
[1718149236469,0.00172,67372.0,67371.0,1.20641023]
[1718149236731,0.00172,67372.0,67371.0,1.27811023]
[1718149237461,0.00172,67372.0,67371.0,1.20641023]
[1718149237648,0.00172,67372.0,67371.0,1.27811023]
[1718149239366,0.00172,67372.0,67371.0,1.20641023]
[1718149239573,0.00172,67372.0,67371.0,1.1337903]
[1718149243148,0.00172,67372.0,67371.0,1.33084793]
[1718149243783,0.00172,67372.0,67371.0,1.33331979]
[1718149245420,0.00172,67372.0,67371.0,0.89360276]
[1718149245639,0.00172,67372.0,67371.0,1.33318265]
[1718149246067,0.00172,67372.0,67371.0,1.40546104]
[1718149246299,0.00172,67372.0,67371.0,1.47727387]
[1718149247608,0.00172,67372.0,67371.0,1.30557387]
[1718149247837,0.00172,67372.0,67371.0,1.32295394]
[1718149251172,0.00172,67372.0,67371.0,1.25125394]
[1718149251379,0.00172,67372.0,67371.0,1.32295394]
[1718149251811,0.00172,67372.0,67371.0,0.86165401]
[1718149251812,0.23522,67372.0,67371.0,0.86165401]
[1718149252038,0.23522,67372.0,67371.0,0.7362322]
[1718149252313,0.23522,67372.0,67371.0,0.61356825]
[1718149252504,0.23522,67372.0,67371.0,0.68526825]
[1718149253187,0.23522,67372.0,67371.0,0.61356825]
[1718149255381,0.23522,67372.0,67371.0,0.74705941]
[1718149257784,0.23522,67372.0,67371.0,0.61356825]
[1718149258434,0.23522,67372.0,67371.0,0.51356825]
[1718149258637,0.23522,67372.0,67371.0,0.61356825]
[1718149259959,0.23522,67372.0,67371.0,0.61256825]
[1718149261062,0.23522,67372.0,67371.0,0.59139991]
[1718149262168,0.23522,67372.0,67371.0,0.59141089]
[1718149262388,0.23522,67372.0,67371.0,0.66311089]
[1718149262608,0.23522,67372.0,67371.0,0.79660205]
[1718149263484,0.00172,67372.0,67371.0,0.80660205]
[1718149263687,0.00172,67372.0,67371.0,0.80752287]
[1718149264763,0.00172,67372.0,67371.0,0.80751929]
[1718149265363,0.00172,67372.0,67371.0,0.67402813]
[1718149265823,0.00172,67372.0,67371.0,0.81762515]
[1718149266029,0.00172,67372.0,67371.0,0.80762515]
[1718149266497,0.00172,67372.0,67371.0,0.66402813]
[1718149267186,0.00172,67372.0,67371.0,0.66497413]
[1718149268081,0.00172,67372.0,67371.0,0.67497413]
[1718149268746,0.00172,67372.0,67371.0,0.66497413]
[1718149269791,0.00172,67372.0,67371.0,0.59327413]
[1718149270209,0.00172,67372.0,67371.0,0.66497413]
[1718149270629,0.00172,67372.0,67371.0,0.59327413]
[1718149270842,0.00172,67372.0,67371.0,0.66497413]
[1718149271258,0.00172,67372.0,67371.0,0.59327413]
[1718149271469,0.00172,67372.0,67371.0,0.66497413]
[1718149271911,0.22982,67372.0,67371.0,0.66497413]
[1718149273257,0.22982,67372.0,67371.0,0.42227244]
[1718149273483,0.22982,67372.0,67371.0,0.66639708]
[1718149275608,0.22982,67372.0,67371.0,0.64239317]
[1718149275817,0.22982,67372.0,67371.0,0.66636502]
[1718149276255,0.22982,67372.0,67371.0,0.79980979]
[1718149276670,0.22982,67372.0,67371.0,0.66636502]
[1718149277109,0.22982,67372.0,67371.0,0.79980979]
[1718149277831,0.22982,67372.0,67371.0,0.66636502]
[1718149278297,0.22982,67372.0,67371.0,0.79980979]
[1718149278759,0.22982,67372.0,67371.0,0.66636502]
[1718149280810,0.22982,67372.0,67371.0,0.59466502]
[1718149282198,0.22982,67372.0,67371.0,0.72810979]
[1718149282401,0.22982,67372.0,67371.0,0.59466502]
[1718149283247,0.22982,67372.0,67371.0,0.72810979]
[1718149283700,0.22982,67372.0,67371.0,0.67678069]
[1718149283874,0.22982,67372.0,67371.0,0.72913448]
[1718149284082,0.22982,67372.0,67371.0,0.67678069]
[1718149284337,0.22982,67372.0,67371.0,0.72913477]
[1718149284470,0.00172,67372.0,67371.0,0.73913477]
[1718149285101,0.00172,67372.0,67371.0,0.60569]
[1718149285514,0.00172,67372.0,67371.0,0.30924334]
[1718149285713,0.00172,67372.0,67371.0,0.60678173]
[1718149286107,0.00172,67372.0,67371.0,0.74023107]
[1718149287568,0.00172,67372.0,67371.0,0.73023107]
[1718149288311,0.00172,67372.0,67371.0,0.73024872]
[1718149290976,0.24082,67372.0,67371.0,0.42536838]
[1718149291188,0.24147,67372.0,67371.0,0.42536838]
[1718149291394,0.31317,67372.0,67371.0,0.12781234]
[1718149291811,0.43630046,67372.0,67371.0,0.12781234]
[1718149292029,0.73904939,67372.0,67371.0,0.02775834]
[1718149292236,0.82299763,67372.0,67371.0,0.02875834]
[1718149292464,0.92299763,67372.0,67371.0,0.02875834]
[1718149292655,0.92213763,67372.0,67371.0,0.02675834]
[1718149292858,0.83818939,67372.0,67371.0,0.000946]
[1718149293070,0.84218939,67372.0,67371.0,0.001946]
[1718149293281,0.84218939,67372.0,67371.0,0.000946]
[1718149293479,0.9362327,67372.0,67371.0,0.000946]
[1718149293701,0.9432327,67372.0,67371.0,0.000946]
[1718149294317,0.9332327,67372.0,67371.0,0.000946]
[1718149294641,0.9442327,67372.0,67371.0,0.000946]
[1718149294845,0.9532327,67372.0,67371.0,0.000946]
[1718149295236,0.9442327,67372.0,67371.0,0.000946]
[1718149295672,0.9552327,67372.0,67371.0,0.000946]
[1718149296137,0.97337646,67372.0,67371.0,0.000946]
[1718149296801,0.97339745,67372.0,67371.0,0.000946]
[1718149297881,1.17339745,67372.0,67371.0,0.000946]
[1718149298327,1.17339624,67372.0,67371.0,0.000946]
[1718149300890,1.17239624,67372.0,67371.0,0.000946]
[1718149301290,1.049246,67372.0,67371.0,0.000946]
[1718149301496,1.17239944,67372.0,67371.0,0.000946]
[1718149305021,1.049246,67372.0,67371.0,0.000946]
[1718149310444,1.17239708,67372.0,67371.0,0.000946]
[1718149312104,1.049246,67372.0,67371.0,0.000946]
[1718149313450,1.17239505,67372.0,67371.0,0.000946]
[1718149316897,1.46925405,67372.0,67371.0,0.000946]
[1718149318196,1.30251074,67372.0,67371.0,0.000946]
[1718149318625,1.37421074,67372.0,67371.0,0.000946]
[1718149322425,1.37421579,67372.0,67371.0,0.000946]
[1718149323999,1.29251579,67372.0,67371.0,0.000946]
[1718149324209,1.37421579,67372.0,67371.0,0.000946]
[1718149325502,1.30251579,67372.0,67371.0,0.000946]
[1718149325708,1.37421579,67372.0,67371.0,0.000946]
[1718149325921,1.51853572,67372.0,67371.0,0.000946]
[1718149326911,1.37421579,67372.0,67371.0,0.000946]
[1718149327089,1.25106169,67372.0,67371.0,0.000946]
[1718149327297,1.37420993,67372.0,67371.0,0.000946]
[1718149328535,1.25106169,67372.0,67371.0,0.000946]
[1718149328737,1.36420997,67372.0,67371.0,0.000946]
[1718149328974,0.75604097,67372.0,67371.0,0.000946]
[1718149329177,0.41237104,67372.0,67371.0,0.000946]
[1718149329404,0.41237104,67372.0,67371.0,0.02421081]
[1718149329405,0.41172104,67372.0,67371.0,0.02421081]
[1718149329585,0.41172104,67372.0,67371.0,0.238246]
[1718149329797,0.41172104,67372.0,67371.0,0.26151081]
[1718149330012,0.28857276,67372.0,67371.0,0.26151081]
[1718149330382,0.28943276,67372.0,67371.0,0.26151081]
[1718149331419,0.27843276,67372.0,67371.0,0.26151081]
[1718149331612,0.26743276,67372.0,67371.0,0.26151081]
[1718149332046,0.27043276,67372.0,67371.0,0.26151081]
[1718149332261,0.27108276,67372.0,67371.0,0.26151081]
[1718149332693,0.27508276,67372.0,67371.0,0.26151081]
[1718149332901,0.27208276,67372.0,67371.0,0.26151081]
[1718149333316,0.27108276,67372.0,67371.0,0.26151081]
[1718149333808,0.27443276,67372.0,67371.0,0.26151081]
[1718149334487,0.02600376,67372.0,67371.0,0.41338792]
[1718149335373,0.02600376,67372.0,67371.0,0.45774836]
[1718149335815,0.02600376,67372.0,67371.0,0.40587125]
[1718149336276,0.02600376,67372.0,67371.0,0.36151081]
[1718149336490,0.02600376,67372.0,67371.0,0.40593494]
[1718149336710,0.02665376,67372.0,67371.0,0.40593494]
[1718149337356,0.02665376,67372.0,67371.0,0.36151081]
[1718149338679,0.02665376,67372.0,67371.0,0.40593386]
[1718149340463,0.02665376,67372.0,67371.0,0.36151081]
[1718149340884,0.02600376,67372.0,67371.0,0.36151081]
[1718149342470,0.02665376,67372.0,67371.0,0.36151081]
[1718149343523,0.02665376,67372.0,67371.0,0.38451081]
[1718149350233,0.02600376,67372.0,67371.0,0.38451081]
[1718149352298,0.02600376,67372.0,67371.0,0.14721081]
[1718149352299,0.02665376,67372.0,67371.0,0.14721081]
[1718149352750,0.02665376,67372.0,67371.0,0.30301081]
[1718149352975,0.02665376,67372.0,67371.0,0.37851081]
[1718149354296,0.02665376,67372.0,67371.0,0.22271081]
[1718149356566,0.02665376,67372.0,67371.0,0.14721081]
[1718149369420,0.02665376,67372.0,67371.0,0.22033658]
[1718149370056,0.02600376,67372.0,67371.0,0.22033658]
[1718149370271,0.02665376,67372.0,67371.0,0.22033658]
[1718149370482,0.02665376,67372.0,67371.0,0.14721081]
[1718149370897,0.02665376,67372.0,67371.0,0.19163513]
[1718149371730,0.02600376,67372.0,67371.0,0.25767318]
[1718149371933,0.02600376,67372.0,67371.0,0.59510465]
[1718149372189,0.02600376,67372.0,67371.0,0.61736791]
[1718149372412,0.02600376,67372.0,67371.0,0.76171373]
[1718149372844,0.02600376,67372.0,67371.0,0.76142063]
[1718149374151,0.02600376,67372.0,67371.0,0.47738526]
[1718149374365,0.02600376,67372.0,67371.0,0.84871561]
[1718149375380,0.02600376,67372.0,67371.0,0.75975849]
[1718149377297,0.02600376,67372.0,67371.0,0.759396]
[1718149377918,0.02600376,67372.0,67371.0,0.6647007]
[1718149377919,0.00786,67372.0,67371.0,0.6647007]
[1718149379122,0.00786,67372.0,67371.0,0.59866265]
[1718149379331,0.00786,67372.0,67371.0,0.38761081]
[1718149379531,0.00786,67372.0,67371.0,0.59979644]
[1718149380374,0.00786,67372.0,67371.0,0.6888041]
[1718149381435,0.00786,67372.0,67371.0,0.7596684]
[1718149381637,0.00786,67372.0,67371.0,0.67066074]
[1718149383135,0.00786,67372.0,67371.0,0.78192032]
[1718149385535,0.00851,67372.0,67371.0,0.78192032]
[1718149385749,0.00851,67372.0,67371.0,0.62212032]
[1718149385980,0.00851,67372.0,67371.0,0.54152032]
[1718149386825,0.00851,67372.0,67371.0,0.47065602]
[1718149387048,0.00851,67372.0,67371.0,0.46917204]
[1718149388577,0.00786,67372.0,67371.0,0.46917204]
[1718149389002,0.00851,67372.0,67371.0,0.44693129]
[1718149390469,0.00851,67372.0,67371.0,0.35790501]
[1718149392123,0.00851,67372.0,67371.0,0.42467645]
[1718149392917,0.00851,67372.0,67371.0,0.35790501]
[1718149393327,0.00851,67372.0,67371.0,0.42467239]
[1718149393910,0.00851,67372.0,67371.0,0.35790501]
[1718149394127,0.00851,67372.0,67371.0,0.42467327]
[1718149396222,0.00851,67372.0,67371.0,0.42747055]
[1718149397739,0.00786,67372.0,67371.0,0.42747055]
[1718149397947,0.00786,67372.0,67371.0,0.36070521]
[1718149398126,0.00851,67372.0,67371.0,0.36070521]
[1718149398334,0.00851,67372.0,67371.0,0.42746708]
[1718149399342,0.00851,67372.0,67371.0,0.14721081]
[1718149400198,0.00851,67372.0,67371.0,0.19171403]
[1718149401906,0.00851,67372.0,67371.0,0.14721081]
[1718149402635,0.00851,67372.0,67371.0,0.19170714]
[1718149403073,0.00851,67372.0,67371.0,0.14721081]
[1718149403522,0.00851,67372.0,67371.0,0.21396627]
[1718149404154,0.00851,67372.0,67371.0,0.14721081]
[1718149405485,0.156939,67372.0,67371.0,0.14721081]
[1718149406589,0.156939,67372.0,67371.0,0.1917039]
[1718149408737,0.156939,67372.0,67371.0,0.19170292]
[1718149410323,0.156939,67372.0,67371.0,0.19170153]
[1718149414274,0.156939,67372.0,67371.0,0.14721081]
[1718149419316,0.156939,67372.0,67371.0,0.19169727]
[1718149419981,0.156289,67372.0,67371.0,0.19169727]
[1718149420409,0.156939,67372.0,67371.0,0.19169727]
[1718149421297,0.155939,67372.0,67371.0,0.19169727]
[1718149422412,0.155939,67372.0,67371.0,0.1917]
[1718149423802,0.155939,67372.0,67371.0,0.19170293]
[1718149425063,0.155939,67372.0,67371.0,0.14721081]
[1718149425701,0.156799,67372.0,67371.0,0.14721081]
[1718149426582,0.156149,67372.0,67371.0,0.14721081]
[1718149427298,0.156799,67372.0,67371.0,0.14721081]
[1718149431311,0.156799,67372.0,67371.0,0.21394487]
[1718149433543,0.156799,67372.0,67371.0,0.42751701]
[1718149434123,0.156799,67372.0,67371.0,0.42748647]
[1718149437518,0.156799,67372.0,67371.0,0.42769592]
[1718149440085,0.156799,67372.0,67371.0,0.36093352]
[1718149440552,0.156799,67372.0,67371.0,0.42769895]
[1718149440769,0.156799,67372.0,67371.0,0.36093352]
[1718149440990,0.156799,67372.0,67371.0,0.4276989]
[1718149442584,0.156149,67372.0,67371.0,0.52370354]
[1718149442832,0.00772,67372.0,67371.0,0.45693816]
[1718149443056,0.00772,67372.0,67371.0,0.69943816]
[1718149443516,0.00772,67372.0,67371.0,0.60343352]
[1718149444396,0.00772,67372.0,67371.0,0.7146598]
[1718149447279,0.00772,67372.0,67371.0,0.60343352]
[1718149448380,0.00837,67372.0,67371.0,0.60343352]
[1718149448980,0.00837,67372.0,67371.0,0.69239885]